[Event "Titled Tuesday Blitz March 01 Early 2022"]
[White "Iljin, Timofey"]
[Black "Csonka, Balazs"]
[WhiteFideId "14110180"]
[BlackFideId "742910"]
[WhiteElo "2396"]
[BlackElo "2404"]
[Result "1-0"]
[Round "07"]
[TimeControl "180+1"]
[Date "2022.03.01"]
[WhiteClock "0:00:48"]
[BlackClock "0:00:04"]

1. e4 {[%clk 0:03:00]}  e6 {[%clk 0:02:56]} 2. d4 {[%clk 0:03:00]}  d5 {[%clk 0:02:56]} 3. e5 {[%clk 0:03:01]}  c5 {[%clk 0:02:55]} 4. c3 {[%clk 0:03:02]}  Nc6 {[%clk 0:02:52]} 5. Nf3 {[%clk 0:03:03]}  Qb6 {[%clk 0:02:48]} 6. Bd3 {[%clk 0:03:03]}  cxd4 {[%clk 0:02:45]} 7. cxd4 {[%clk 0:03:04]}  Bd7 {[%clk 0:02:44]} 8. O-O {[%clk 0:03:03]}  Nxd4 {[%clk 0:02:43]} 9. Nxd4 {[%clk 0:03:03]}  Qxd4 {[%clk 0:02:44]} 10. Nc3 {[%clk 0:03:04]}  a6 {[%clk 0:02:33]} 11. Qe2 {[%clk 0:03:02]}  Ne7 {[%clk 0:02:21]} 12. Kh1 {[%clk 0:03:03]}  Nc6 {[%clk 0:01:31]} 13. f4 {[%clk 0:03:02]}  Be7 {[%clk 0:01:28]} 14. a3 {[%clk 0:02:58]}  Qb6 {[%clk 0:01:26]} 15. f5 {[%clk 0:02:54]}  O-O-O {[%clk 0:01:08]} 16. Bf4 {[%clk 0:02:49]}  Kb8 {[%clk 0:00:40]} 17. Rac1 {[%clk 0:02:43]}  Ka8 {[%clk 0:00:38]} 18. b4 {[%clk 0:02:37]}  Bc8 {[%clk 0:00:31]} 19. Na4 {[%clk 0:02:33]}  Qa7 {[%clk 0:00:30]} 20. Be3 {[%clk 0:02:27]}  d4 {[%clk 0:00:28]} 21. Bg1 {[%clk 0:02:27]}  exf5 {[%clk 0:00:24]} 22. Bxf5 {[%clk 0:02:25]}  Be6 {[%clk 0:00:23]} 23. Be4 {[%clk 0:02:22]}  Bd5 {[%clk 0:00:21]} 24. Bxd5 {[%clk 0:02:19]}  Rxd5 {[%clk 0:00:22]} 25. Rxf7 {[%clk 0:02:19]}  Rxe5 {[%clk 0:00:21]} 26. Qf3 {[%clk 0:02:12]}  Rc8 {[%clk 0:00:15]} 27. Rxg7 {[%clk 0:02:06]}  h5 {[%clk 0:00:15]} 28. Qg3 {[%clk 0:02:03]}  Bd6 {[%clk 0:00:13]} 29. Rg8 {[%clk 0:01:55]}  Rxg8 {[%clk 0:00:10]} 30. Qxg8+ {[%clk 0:01:56]}  Qb8 {[%clk 0:00:11]} 31. Nb6+ {[%clk 0:01:48]}  Ka7 {[%clk 0:00:11]} 32. Nc8+ {[%clk 0:01:31]}  Ka8 {[%clk 0:00:11]} 33. Nb6+ {[%clk 0:01:19]}  Ka7 {[%clk 0:00:11]} 34. Qc4 {[%clk 0:01:00]}  Kxb6 {[%clk 0:00:05]} 35. Bxd4+ {[%clk 0:00:59]}  Kc7 {[%clk 0:00:05]} 36. Bxe5 {[%clk 0:00:58]}  Bxe5 {[%clk 0:00:04]} 37. Re1 {[%clk 0:00:54]}  Qe8 {[%clk 0:00:02]} 38. a4 {[%clk 0:00:53]}  Kb8 {[%clk 0:00:02]} 39. b5 {[%clk 0:00:52]}  axb5 {[%clk 0:00:03]} 40. axb5 {[%clk 0:00:53]}  Na7 {[%clk 0:00:02]} 41. Qc5 {[%clk 0:00:50]}  Qxb5 {[%clk 0:00:02]} 42. Qxb5 {[%clk 0:00:47]}  Nxb5 {[%clk 0:00:02]} 43. Rxe5 {[%clk 0:00:48]}  Nd4 {[%clk 0:00:03]} 44. Rxh5 {[%clk 0:00:48]}  Kc7 {[%clk 0:00:04]} 45. Rd5 {[%clk 0:00:48]}  Ne6 {[%clk 0:00:03]} 46. Rd1 {[%clk 0:00:48]}  b5 {[%clk 0:00:03]} 47. h4 {[%clk 0:00:48]}  b4 {[%clk 0:00:04]} 48. h5 {[%clk 0:00:48]} 1-0


[Site "https://www.chess.com"]

[Event "Titled Tuesday Blitz March 01 Early 2022"]
[White "Kanyamarala, Trisha"]
[Black "Kaplan, Ebru"]
[WhiteFideId "45004722"]
[BlackFideId "6315194"]
[WhiteElo "2002"]
[BlackElo "1941"]
[Result "1-0"]
[Round "07"]
[TimeControl "180+1"]
[Date "2022.03.01"]
[WhiteClock "0:02:03"]
[BlackClock "0:01:41"]

1. c4 {[%clk 0:03:00]}  c6 {[%clk 0:02:58]} 2. Nc3 {[%clk 0:03:00]}  d5 {[%clk 0:02:58]} 3. e3 {[%clk 0:03:00]}  Nf6 {[%clk 0:02:58]} 4. Nf3 {[%clk 0:03:01]}  Bg4 {[%clk 0:02:56]} 5. d4 {[%clk 0:02:57]}  e6 {[%clk 0:02:53]} 6. Be2 {[%clk 0:02:55]}  Be7 {[%clk 0:02:51]} 7. O-O {[%clk 0:02:55]}  O-O {[%clk 0:02:51]} 8. b3 {[%clk 0:02:55]}  Nbd7 {[%clk 0:02:50]} 9. Bb2 {[%clk 0:02:54]}  Rc8 {[%clk 0:02:49]} 10. h3 {[%clk 0:02:52]}  Bh5 {[%clk 0:02:46]} 11. Rc1 {[%clk 0:02:52]}  h6 {[%clk 0:02:45]} 12. Qc2 {[%clk 0:02:46]}  dxc4 {[%clk 0:02:35]} 13. bxc4 {[%clk 0:02:45]}  Bxf3 {[%clk 0:02:27]} 14. Bxf3 {[%clk 0:02:44]}  e5 {[%clk 0:02:28]} 15. Rfd1 {[%clk 0:02:43]}  Qc7 {[%clk 0:02:24]} 16. Ne4 {[%clk 0:02:30]}  Rfd8 {[%clk 0:02:12]} 17. Nxf6+ {[%clk 0:02:14]}  Bxf6 {[%clk 0:02:10]} 18. Bg4 {[%clk 0:02:15]}  exd4 {[%clk 0:02:07]} 19. exd4 {[%clk 0:02:13]}  c5 {[%clk 0:01:52]} 20. d5 {[%clk 0:02:04]}  Bxb2 {[%clk 0:01:49]} 21. Qxb2 {[%clk 0:02:05]}  Ne5 {[%clk 0:01:45]} 22. Bxc8 {[%clk 0:02:03]}  Rxc8 {[%clk 0:01:43]} 23. d6 {[%clk 0:02:03]}  Qd7 {[%clk 0:01:41]} 24. Qxe5 {[%clk 0:02:03]} 1-0


[Site "https://www.chess.com"]

[Event "Titled Tuesday Blitz March 01 Early 2022"]
[White "Karttunen, Mika"]
[Black "Samant Aditya S"]
[WhiteFideId "502081"]
[BlackFideId "35080580"]
[WhiteElo "2343"]
[BlackElo "1916"]
[Result "1/2-1/2"]
[Round "07"]
[TimeControl "180+1"]
[Date "2022.03.01"]
[WhiteClock "0:00:22"]
[BlackClock "0:00:04"]

1. d4 {[%clk 0:03:00]}  Nf6 {[%clk 0:02:59]} 2. c4 {[%clk 0:03:00]}  e6 {[%clk 0:03:00]} 3. g3 {[%clk 0:02:59]}  Bb4+ {[%clk 0:03:00]} 4. Bd2 {[%clk 0:02:58]}  a5 {[%clk 0:03:00]} 5. Bg2 {[%clk 0:02:56]}  d5 {[%clk 0:03:01]} 6. a3 {[%clk 0:02:51]}  Bxd2+ {[%clk 0:02:48]} 7. Nxd2 {[%clk 0:02:52]}  O-O {[%clk 0:02:48]} 8. Ngf3 {[%clk 0:02:48]}  dxc4 {[%clk 0:02:16]} 9. Nxc4 {[%clk 0:02:48]}  b5 {[%clk 0:02:16]} 10. Nce5 {[%clk 0:02:44]}  Bb7 {[%clk 0:02:16]} 11. Rc1 {[%clk 0:02:42]}  Ra6 {[%clk 0:02:03]} 12. O-O {[%clk 0:02:38]}  Nbd7 {[%clk 0:02:02]} 13. Nd3 {[%clk 0:02:34]}  Be4 {[%clk 0:01:47]} 14. Nfe5 {[%clk 0:02:25]}  Bxg2 {[%clk 0:01:44]} 15. Kxg2 {[%clk 0:02:25]}  Rd6 {[%clk 0:01:43]} 16. e3 {[%clk 0:02:21]}  c5 {[%clk 0:01:17]} 17. Nxd7 {[%clk 0:02:18]}  Nxd7 {[%clk 0:01:18]} 18. Nxc5 {[%clk 0:02:18]}  e5 {[%clk 0:01:08]} 19. Ne4 {[%clk 0:01:27]}  Rb6 {[%clk 0:01:00]} 20. d5 {[%clk 0:01:18]}  b4 {[%clk 0:00:38]} 21. a4 {[%clk 0:01:10]}  Qa8 {[%clk 0:00:22]} 22. Rc7 {[%clk 0:01:03]}  Rd8 {[%clk 0:00:23]} 23. Qd3 {[%clk 0:00:41]}  Nf8 {[%clk 0:00:23]} 24. Rd1 {[%clk 0:00:40]}  Ne6 {[%clk 0:00:16]} 25. Rc4 {[%clk 0:00:34]}  Nf8 {[%clk 0:00:08]} 26. Rc5 {[%clk 0:00:31]}  Nd7 {[%clk 0:00:06]} 27. Rb5 {[%clk 0:00:31]}  Ra6 {[%clk 0:00:06]} 28. Ng5 {[%clk 0:00:26]}  g6 {[%clk 0:00:06]} 29. e4 {[%clk 0:00:25]}  h6 {[%clk 0:00:04]} 30. Nf3 {[%clk 0:00:25]}  Qa7 {[%clk 0:00:04]} 31. Rc1 {[%clk 0:00:23]}  Kg7 {[%clk 0:00:03]} 32. Rc6 {[%clk 0:00:21]}  Re8 {[%clk 0:00:03]} 33. Qc4 {[%clk 0:00:20]}  Nb6 {[%clk 0:00:01]} 34. Qc5 {[%clk 0:00:20]}  Nxa4 {[%clk 0:00:01]} 35. Qc2 {[%clk 0:00:17]}  Rxc6 {[%clk 0:00:01]} 36. dxc6 {[%clk 0:00:17]}  Nb6 {[%clk 0:00:02]} 37. Qc5 {[%clk 0:00:17]}  Nc8 {[%clk 0:00:02]} 38. Rxa5 {[%clk 0:00:17]}  Qxc5 {[%clk 0:00:01]} 39. Rxc5 {[%clk 0:00:18]}  Kf6 {[%clk 0:00:01]} 40. Nd2 {[%clk 0:00:18]}  Ke6 {[%clk 0:00:01]} 41. Nc4 {[%clk 0:00:17]}  Re7 {[%clk 0:00:02]} 42. Ne3 {[%clk 0:00:17]}  Kd6 {[%clk 0:00:02]} 43. Rc4 {[%clk 0:00:16]}  Rc7 {[%clk 0:00:02]} 44. Nd5 {[%clk 0:00:16]}  Rxc6 {[%clk 0:00:02]} 45. Rxc6+ {[%clk 0:00:16]}  Kxc6 {[%clk 0:00:03]} 46. Nxb4+ {[%clk 0:00:17]}  Kc5 {[%clk 0:00:04]} 47. Nd3+ {[%clk 0:00:18]}  Kd4 {[%clk 0:00:04]} 48. Nb4 {[%clk 0:00:18]}  Kxe4 {[%clk 0:00:05]} 49. Nc6 {[%clk 0:00:18]}  Kd5 {[%clk 0:00:04]} 50. Nd8 {[%clk 0:00:18]}  Nd6 {[%clk 0:00:03]} 51. h4 {[%clk 0:00:16]}  Kc5 {[%clk 0:00:03]} 52. Kf3 {[%clk 0:00:13]}  Kb6 {[%clk 0:00:03]} 53. Ke3 {[%clk 0:00:14]}  Kc7 {[%clk 0:00:03]} 54. Nxf7 {[%clk 0:00:15]}  Nxf7 {[%clk 0:00:04]} 55. Ke4 {[%clk 0:00:16]}  Kd6 {[%clk 0:00:04]} 56. f4 {[%clk 0:00:16]}  exf4 {[%clk 0:00:03]} 57. gxf4 {[%clk 0:00:17]}  Ke6 {[%clk 0:00:04]} 58. b4 {[%clk 0:00:16]}  Nd6+ {[%clk 0:00:04]} 59. Kf3 {[%clk 0:00:16]}  Nf5 {[%clk 0:00:03]} 60. Kg4 {[%clk 0:00:17]}  Kf6 {[%clk 0:00:03]} 61. h5 {[%clk 0:00:17]}  gxh5+ {[%clk 0:00:02]} 62. Kxh5 {[%clk 0:00:17]}  Ke6 {[%clk 0:00:02]} 63. Kg6 {[%clk 0:00:18]}  Nd6 {[%clk 0:00:02]} 64. Kxh6 {[%clk 0:00:18]}  Kf5 {[%clk 0:00:03]} 65. Kg7 {[%clk 0:00:18]}  Kxf4 {[%clk 0:00:03]} 66. Kf6 {[%clk 0:00:18]}  Ke4 {[%clk 0:00:03]} 67. Ke6 {[%clk 0:00:19]}  Nc4 {[%clk 0:00:02]} 68. Kd7 {[%clk 0:00:20]}  Kd4 {[%clk 0:00:03]} 69. Kc6 {[%clk 0:00:20]}  Kc3 {[%clk 0:00:03]} 70. b5 {[%clk 0:00:21]}  Kb4 {[%clk 0:00:04]} 71. b6 {[%clk 0:00:22]}  Nxb6 {[%clk 0:00:04]} 1/2-1/2


[Site "https://www.chess.com"]

[Event "Titled Tuesday Blitz March 01 Early 2022"]
[White "Khamdamova, Afruza"]
[Black "Guz, Ari"]
[WhiteFideId "14210444"]
[BlackFideId "2825759"]
[WhiteElo "1660"]
[BlackElo "1913"]
[Result "0-1"]
[Round "07"]
[TimeControl "180+1"]
[Date "2022.03.01"]
[WhiteClock "0:00:50"]
[BlackClock "0:00:22"]

1. e4 {[%clk 0:03:00]}  c5 {[%clk 0:02:56]} 2. Nf3 {[%clk 0:03:00]}  e6 {[%clk 0:02:54]} 3. d4 {[%clk 0:03:00]}  cxd4 {[%clk 0:02:55]} 4. Nxd4 {[%clk 0:03:00]}  a6 {[%clk 0:02:56]} 5. Nc3 {[%clk 0:02:59]}  Qc7 {[%clk 0:02:43]} 6. Be2 {[%clk 0:02:59]}  Bb4 {[%clk 0:02:42]} 7. Bd2 {[%clk 0:02:54]}  Nf6 {[%clk 0:02:38]} 8. Bd3 {[%clk 0:02:50]}  Nc6 {[%clk 0:02:37]} 9. Nb3 {[%clk 0:02:45]}  O-O {[%clk 0:02:25]} 10. O-O {[%clk 0:02:41]}  b5 {[%clk 0:02:17]} 11. a3 {[%clk 0:02:39]}  Be7 {[%clk 0:02:15]} 12. f4 {[%clk 0:02:34]}  d6 {[%clk 0:02:14]} 13. Be3 {[%clk 0:02:29]}  Bb7 {[%clk 0:02:12]} 14. Nd4 {[%clk 0:02:26]}  Nd7 {[%clk 0:01:48]} 15. Kh1 {[%clk 0:02:21]}  Nxd4 {[%clk 0:01:44]} 16. Bxd4 {[%clk 0:02:19]}  Nc5 {[%clk 0:01:44]} 17. e5 {[%clk 0:02:11]}  Rad8 {[%clk 0:01:29]} 18. Qg4 {[%clk 0:02:09]}  f5 {[%clk 0:01:10]} 19. exf6 {[%clk 0:02:07]}  Bxf6 {[%clk 0:01:09]} 20. Bxf6 {[%clk 0:02:02]}  Rxf6 {[%clk 0:01:08]} 21. Rae1 {[%clk 0:02:00]}  Nxd3 {[%clk 0:01:07]} 22. cxd3 {[%clk 0:02:00]}  Rg6 {[%clk 0:01:08]} 23. Qh4 {[%clk 0:01:43]}  Bxg2+ {[%clk 0:00:55]} 24. Kg1 {[%clk 0:01:41]}  Bxf1+ {[%clk 0:00:50]} 25. Kxf1 {[%clk 0:01:40]}  Rf8 {[%clk 0:00:50]} 26. Re4 {[%clk 0:01:35]}  e5 {[%clk 0:00:42]} 27. Ke2 {[%clk 0:01:32]}  Qf7 {[%clk 0:00:36]} 28. Kd2 {[%clk 0:01:12]}  Qb3 {[%clk 0:00:31]} 29. Nd1 {[%clk 0:01:04]}  Rg2+ {[%clk 0:00:25]} 30. Re2 {[%clk 0:01:03]}  Rxe2+ {[%clk 0:00:24]} 31. Kxe2 {[%clk 0:01:02]}  Qc2+ {[%clk 0:00:24]} 32. Ke1 {[%clk 0:01:01]}  exf4 {[%clk 0:00:24]} 33. Qe7 {[%clk 0:00:58]}  f3 {[%clk 0:00:24]} 34. Qe6+ {[%clk 0:00:51]}  Kh8 {[%clk 0:00:24]} 35. Qe7 {[%clk 0:00:50]}  f2+ {[%clk 0:00:22]} 0-1


[Site "https://www.chess.com"]

[Event "Titled Tuesday Blitz March 01 Early 2022"]
[White "Kukhmazov, Arsen"]
[Black "Domingo Nunez, Alejandro"]
[WhiteFideId "24108260"]
[BlackFideId "22245561"]
[WhiteElo "2487"]
[BlackElo "2215"]
[Result "1-0"]
[Round "07"]
[TimeControl "180+1"]
[Date "2022.03.01"]
[WhiteClock "0:00:16"]
[BlackClock "0:00:02"]

1. d4 {[%clk 0:03:00]}  g6 {[%clk 0:02:53]} 2. h4 {[%clk 0:02:59]}  h5 {[%clk 0:02:50]} 3. Nf3 {[%clk 0:02:50]}  Bg7 {[%clk 0:02:50]} 4. g3 {[%clk 0:02:46]}  d6 {[%clk 0:02:45]} 5. Bg2 {[%clk 0:02:47]}  Nd7 {[%clk 0:02:45]} 6. O-O {[%clk 0:02:46]}  Ngf6 {[%clk 0:02:42]} 7. c4 {[%clk 0:02:46]}  O-O {[%clk 0:02:41]} 8. Nc3 {[%clk 0:02:47]}  c5 {[%clk 0:02:26]} 9. b3 {[%clk 0:02:36]}  Rb8 {[%clk 0:02:18]} 10. Bg5 {[%clk 0:02:20]}  a6 {[%clk 0:02:16]} 11. Rc1 {[%clk 0:02:20]}  b5 {[%clk 0:02:15]} 12. dxc5 {[%clk 0:02:16]}  Nxc5 {[%clk 0:02:15]} 13. Nd4 {[%clk 0:02:15]}  Bd7 {[%clk 0:02:16]} 14. cxb5 {[%clk 0:02:10]}  axb5 {[%clk 0:02:16]} 15. Nc6 {[%clk 0:02:09]}  Bxc6 {[%clk 0:02:16]} 16. Bxc6 {[%clk 0:02:10]}  b4 {[%clk 0:02:08]} 17. Na4 {[%clk 0:02:09]}  Nfe4 {[%clk 0:02:04]} 18. Nxc5 {[%clk 0:02:03]}  Nxc5 {[%clk 0:01:50]} 19. Qd2 {[%clk 0:01:48]}  Qc7 {[%clk 0:01:19]} 20. Bf3 {[%clk 0:01:31]}  Qa7 {[%clk 0:01:16]} 21. Rc2 {[%clk 0:01:28]}  Ne6 {[%clk 0:01:14]} 22. Be3 {[%clk 0:01:11]}  Bd4 {[%clk 0:01:05]} 23. Rfc1 {[%clk 0:01:10]}  Bxe3 {[%clk 0:01:04]} 24. fxe3 {[%clk 0:01:11]}  Nc5 {[%clk 0:01:03]} 25. Kf2 {[%clk 0:01:11]}  Qd7 {[%clk 0:01:02]} 26. Qd4 {[%clk 0:01:08]}  Qe6 {[%clk 0:00:52]} 27. Rc4 {[%clk 0:01:03]}  Rfc8 {[%clk 0:00:39]} 28. Kg2 {[%clk 0:00:51]}  Rd8 {[%clk 0:00:23]} 29. Bd5 {[%clk 0:00:41]}  Qd7 {[%clk 0:00:12]} 30. Rxb4 {[%clk 0:00:27]}  Rxb4 {[%clk 0:00:13]} 31. Qxb4 {[%clk 0:00:28]}  e6 {[%clk 0:00:14]} 32. Bf3 {[%clk 0:00:28]}  Qa7 {[%clk 0:00:14]} 33. a4 {[%clk 0:00:28]}  Rb8 {[%clk 0:00:14]} 34. Qd4 {[%clk 0:00:28]}  Qa6 {[%clk 0:00:10]} 35. b4 {[%clk 0:00:25]}  Nb3 {[%clk 0:00:09]} 36. Qc4 {[%clk 0:00:23]}  Qxa4 {[%clk 0:00:07]} 37. Rd1 {[%clk 0:00:13]}  Qxb4 {[%clk 0:00:03]} 38. Qc7 {[%clk 0:00:13]}  Nd2 {[%clk 0:00:01]} 39. Rxd2 {[%clk 0:00:12]}  Qxd2 {[%clk 0:00:02]} 40. Qxb8+ {[%clk 0:00:12]}  Kg7 {[%clk 0:00:03]} 41. Qb3 {[%clk 0:00:12]}  d5 {[%clk 0:00:02]} 42. Qd3 {[%clk 0:00:12]}  Qb2 {[%clk 0:00:02]} 43. Qd4+ {[%clk 0:00:13]}  Qxd4 {[%clk 0:00:03]} 44. exd4 {[%clk 0:00:14]}  f6 {[%clk 0:00:03]} 45. e3 {[%clk 0:00:14]}  Kf7 {[%clk 0:00:02]} 46. Bd1 {[%clk 0:00:14]}  Ke7 {[%clk 0:00:03]} 47. Bb3 {[%clk 0:00:15]}  Kd6 {[%clk 0:00:03]} 48. Kf3 {[%clk 0:00:16]}  Kc6 {[%clk 0:00:04]} 49. Bc2 {[%clk 0:00:16]}  g5 {[%clk 0:00:02]} 50. Bg6 {[%clk 0:00:16]} 1-0


[Site "https://www.chess.com"]

[Event "Titled Tuesday Blitz March 01 Early 2022"]
[White "Kushko, Dmitriy"]
[Black "Godzwon, Iwo"]
[WhiteFideId "14162261"]
[BlackFideId "21802483"]
[WhiteElo "2225"]
[BlackElo "2201"]
[Result "1/2-1/2"]
[Round "07"]
[TimeControl "180+1"]
[Date "2022.03.01"]
[WhiteClock "0:00:36"]
[BlackClock "0:00:17"]

1. Nf3 {[%clk 0:03:00]}  c5 {[%clk 0:02:45]} 2. g3 {[%clk 0:02:59]}  g6 {[%clk 0:02:45]} 3. Bg2 {[%clk 0:02:59]}  Bg7 {[%clk 0:02:45]} 4. c4 {[%clk 0:03:00]}  Nc6 {[%clk 0:02:44]} 5. Nc3 {[%clk 0:03:00]}  e6 {[%clk 0:02:45]} 6. a3 {[%clk 0:02:56]}  Nge7 {[%clk 0:02:45]} 7. b4 {[%clk 0:02:54]}  cxb4 {[%clk 0:02:44]} 8. axb4 {[%clk 0:02:55]}  Nxb4 {[%clk 0:02:44]} 9. Ba3 {[%clk 0:02:55]}  Nbc6 {[%clk 0:02:45]} 10. Nb5 {[%clk 0:02:38]}  O-O {[%clk 0:02:44]} 11. Bd6 {[%clk 0:02:36]}  Nf5 {[%clk 0:02:30]} 12. Bxf8 {[%clk 0:02:32]}  Bxa1 {[%clk 0:02:30]} 13. Qxa1 {[%clk 0:02:31]}  Qxf8 {[%clk 0:02:30]} 14. O-O {[%clk 0:02:29]}  a6 {[%clk 0:02:26]} 15. Nc3 {[%clk 0:02:28]}  Qg7 {[%clk 0:02:10]} 16. e3 {[%clk 0:02:27]}  d6 {[%clk 0:02:08]} 17. d4 {[%clk 0:02:26]}  Bd7 {[%clk 0:02:09]} 18. Ne4 {[%clk 0:02:25]}  h5 {[%clk 0:02:07]} 19. c5 {[%clk 0:02:24]}  d5 {[%clk 0:02:04]} 20. Ned2 {[%clk 0:02:22]}  Qf8 {[%clk 0:01:59]} 21. Rb1 {[%clk 0:02:21]}  Rb8 {[%clk 0:01:59]} 22. Ne1 {[%clk 0:02:14]}  Qd8 {[%clk 0:01:54]} 23. Nd3 {[%clk 0:02:12]}  Nce7 {[%clk 0:01:48]} 24. e4 {[%clk 0:02:06]}  dxe4 {[%clk 0:01:47]} 25. Nxe4 {[%clk 0:02:05]}  Nd5 {[%clk 0:01:43]} 26. Ne5 {[%clk 0:02:03]}  Bb5 {[%clk 0:01:42]} 27. Bf1 {[%clk 0:02:01]}  Bxf1 {[%clk 0:01:42]} 28. Kxf1 {[%clk 0:02:02]}  Kg7 {[%clk 0:01:37]} 29. Nc4 {[%clk 0:02:00]}  Qc8 {[%clk 0:01:34]} 30. Ned6 {[%clk 0:01:58]}  Qc6 {[%clk 0:01:32]} 31. Nxf5+ {[%clk 0:01:55]}  gxf5 {[%clk 0:01:31]} 32. Ne5 {[%clk 0:01:52]}  Qc7 {[%clk 0:01:31]} 33. Qa3 {[%clk 0:01:50]}  b6 {[%clk 0:01:25]} 34. Qf3 {[%clk 0:01:42]}  f6 {[%clk 0:01:11]} 35. Nd3 {[%clk 0:01:35]}  Kg6 {[%clk 0:01:02]} 36. Re1 {[%clk 0:01:32]}  Re8 {[%clk 0:00:58]} 37. Rxe6 {[%clk 0:01:16]}  Rxe6 {[%clk 0:00:57]} 38. Qxd5 {[%clk 0:01:17]}  Re4 {[%clk 0:00:44]} 39. Nf4+ {[%clk 0:01:14]}  Rxf4 {[%clk 0:00:26]} 40. gxf4 {[%clk 0:01:15]}  bxc5 {[%clk 0:00:26]} 41. dxc5 {[%clk 0:01:12]}  a5 {[%clk 0:00:26]} 42. c6 {[%clk 0:01:08]}  a4 {[%clk 0:00:25]} 43. Qd7 {[%clk 0:01:02]}  Qxf4 {[%clk 0:00:25]} 44. c7 {[%clk 0:01:01]}  Qc1+ {[%clk 0:00:25]} 45. Kg2 {[%clk 0:00:52]}  Qg5+ {[%clk 0:00:25]} 46. Kf1 {[%clk 0:00:50]}  Qc1+ {[%clk 0:00:25]} 47. Ke2 {[%clk 0:00:50]}  Qc2+ {[%clk 0:00:25]} 48. Ke3 {[%clk 0:00:47]}  Qc3+ {[%clk 0:00:16]} 49. Ke2 {[%clk 0:00:36]}  Qc2+ {[%clk 0:00:16]} 50. Ke1 {[%clk 0:00:36]}  Qc1+ {[%clk 0:00:16]} 51. Ke2 {[%clk 0:00:36]}  Qc2+ {[%clk 0:00:17]} 1/2-1/2


[Site "https://www.chess.com"]

[Event "Titled Tuesday Blitz March 01 Early 2022"]
[White "Lauridsen, Jesper Morch"]
[Black "Brunner, Nicolas"]
[WhiteFideId "1401890"]
[BlackFideId "620246"]
[WhiteElo "2192"]
[BlackElo "2372"]
[Result "1/2-1/2"]
[Round "07"]
[TimeControl "180+1"]
[Date "2022.03.01"]
[WhiteClock "0:02:43"]
[BlackClock "0:01:39"]

1. e4 {[%clk 0:03:00]}  e5 {[%clk 0:02:54]} 2. Nf3 {[%clk 0:03:01]}  Nc6 {[%clk 0:02:52]} 3. d4 {[%clk 0:03:01]}  exd4 {[%clk 0:02:52]} 4. Bc4 {[%clk 0:03:02]}  Nf6 {[%clk 0:02:52]} 5. O-O {[%clk 0:03:02]}  Nxe4 {[%clk 0:02:46]} 6. Re1 {[%clk 0:03:01]}  d5 {[%clk 0:02:46]} 7. Bxd5 {[%clk 0:03:00]}  Qxd5 {[%clk 0:02:46]} 8. Nc3 {[%clk 0:03:01]}  Qd7 {[%clk 0:02:46]} 9. Nxe4 {[%clk 0:03:01]}  Be7 {[%clk 0:02:33]} 10. Bg5 {[%clk 0:03:00]}  O-O {[%clk 0:02:31]} 11. Bxe7 {[%clk 0:03:00]}  Qxe7 {[%clk 0:02:30]} 12. Nxd4 {[%clk 0:02:58]}  Bd7 {[%clk 0:02:30]} 13. Nb3 {[%clk 0:02:56]}  Rae8 {[%clk 0:02:13]} 14. Nbc5 {[%clk 0:02:50]}  Bc8 {[%clk 0:02:10]} 15. Qd2 {[%clk 0:02:48]}  b6 {[%clk 0:02:02]} 16. Nd3 {[%clk 0:02:44]}  Qh4 {[%clk 0:01:52]} 17. Ng3 {[%clk 0:02:43]}  Bb7 {[%clk 0:01:39]} 1/2-1/2


[Site "https://www.chess.com"]

[Event "Titled Tuesday Blitz March 01 Early 2022"]
[White "Makhnev, Denis"]
[Black "Al-Tarboush, Ward"]
[WhiteFideId "13707647"]
[BlackFideId "7601450"]
[WhiteElo "2491"]
[BlackElo "2276"]
[Result "1-0"]
[Round "07"]
[TimeControl "180+1"]
[Date "2022.03.01"]
[WhiteClock "0:02:00"]
[BlackClock "0:01:53"]

1. Nf3 {[%clk 0:02:59]}  d5 {[%clk 0:02:59]} 2. c4 {[%clk 0:02:55]}  c6 {[%clk 0:02:59]} 3. cxd5 {[%clk 0:02:55]}  cxd5 {[%clk 0:03:00]} 4. d4 {[%clk 0:02:55]}  Nf6 {[%clk 0:03:01]} 5. Nc3 {[%clk 0:02:56]}  Nc6 {[%clk 0:03:01]} 6. Bf4 {[%clk 0:02:56]}  Bf5 {[%clk 0:03:01]} 7. e3 {[%clk 0:02:56]}  e6 {[%clk 0:03:02]} 8. Ne5 {[%clk 0:02:55]}  Nxe5 {[%clk 0:03:01]} 9. Bxe5 {[%clk 0:02:55]}  Be7 {[%clk 0:03:00]} 10. Bb5+ {[%clk 0:02:51]}  Nd7 {[%clk 0:02:59]} 11. Bxg7 {[%clk 0:02:51]}  Rg8 {[%clk 0:03:00]} 12. Be5 {[%clk 0:02:51]}  Rxg2 {[%clk 0:03:00]} 13. Bg3 {[%clk 0:02:51]}  Be4 {[%clk 0:02:53]} 14. Nxe4 {[%clk 0:02:46]}  dxe4 {[%clk 0:02:53]} 15. Kf1 {[%clk 0:02:45]}  Rxg3 {[%clk 0:02:48]} 16. hxg3 {[%clk 0:02:46]}  a6 {[%clk 0:02:47]} 17. Bxd7+ {[%clk 0:02:43]}  Qxd7 {[%clk 0:02:48]} 18. Rxh7 {[%clk 0:02:43]}  O-O-O {[%clk 0:02:39]} 19. Qc2+ {[%clk 0:02:41]}  Kb8 {[%clk 0:02:39]} 20. Qxe4 {[%clk 0:02:35]}  f5 {[%clk 0:02:34]} 21. Qf3 {[%clk 0:02:25]}  Qb5+ {[%clk 0:02:29]} 22. Kg2 {[%clk 0:02:25]}  Bd6 {[%clk 0:02:25]} 23. b3 {[%clk 0:02:16]}  Rc8 {[%clk 0:02:20]} 24. Rah1 {[%clk 0:02:14]}  Ka7 {[%clk 0:02:19]} 25. Rf7 {[%clk 0:02:11]}  e5 {[%clk 0:02:05]} 26. dxe5 {[%clk 0:02:09]}  Bxe5 {[%clk 0:01:57]} 27. Rhh7 {[%clk 0:02:07]}  Rb8 {[%clk 0:01:57]} 28. Rxf5 {[%clk 0:02:06]}  Qe8 {[%clk 0:01:55]} 29. Qe4 {[%clk 0:02:03]}  Bd6 {[%clk 0:01:52]} 30. Rxb7+ {[%clk 0:02:00]}  Rxb7 {[%clk 0:01:53]} 1-0


[Site "https://www.chess.com"]